[Event "Championnat du monde jeunes U12"]
[Date "2024.11.22"]
[White "Le, Anh Tu"]
[Black "Marchand, Calix"]
[WhiteElo "1812"]
[BlackElo "2027"]
[Round "7.20"]
[Result "1/2-1/2"]
[TimeControl "5400+30"]

1. e4 {[%clk 1:30:58]} 1... c5 {[%clk 1:30:48]} 2. Nf3 {[%clk 1:31:22]} 2... e6
{[%clk 1:31:10]} 3. d4 {[%clk 1:31:45]} 3... cxd4 {[%clk 1:31:32]} 4. Nxd4
{[%clk 1:32:09]} 4... Nc6 {[%clk 1:31:48]} 5. Nc3 {[%clk 1:32:33]} 5... Qc7
{[%clk 1:32:11]} 6. Be2 {[%clk 1:32:56]} 6... a6 {[%clk 1:32:04]} 7. Nxc6 {[%clk
1:33:13]} 7... bxc6 {[%clk 1:31:10]} 8. Qd3 {[%clk 1:33:09]} 8... Nf6 {[%clk
1:27:15]} 9. Qg3 {[%clk 1:33:32]} 9... Qxg3 {[%clk 1:25:12]} 10. hxg3 {[%clk
1:33:53]} 10... Bb4 {[%clk 1:24:49]} 11. e5 {[%clk 1:28:38]} 11... Ne4 {[%clk
1:22:47]} 12. Bd2 {[%clk 1:29:00]} 12... Nxd2 {[%clk 1:22:07]} 13. Kxd2 {[%clk
1:29:17]} 13... O-O {[%clk 1:18:36]} 14. Bd3 {[%clk 1:26:25]} 14... h6 {[%clk
1:16:04]} 15. a3 {[%clk 1:24:31]} 15... Be7 {[%clk 1:13:50]} 16. Ne4 {[%clk
1:16:40]} 16... f6 {[%clk 1:09:38]} 17. exf6 {[%clk 1:15:05]} 17... Bxf6 {[%clk
1:06:28]} 18. Nxf6+ {[%clk 1:12:48]} 18... Rxf6 {[%clk 1:06:46]} 19. f4 {[%clk
1:13:15]} 19... Bb7 {[%clk 1:04:25]} 20. Rh5 {[%clk 1:07:50]} 20... Rc8 {[%clk
1:01:56]} 21. b4 {[%clk 1:07:39]} 21... d5 {[%clk 1:00:08]} 22. Rb1 {[%clk
1:07:03]} 22... Kf7 {[%clk 0:58:11]} 23. Ke3 {[%clk 1:05:40]} 23... Ke7 {[%clk
0:55:25]} 24. Kd4 {[%clk 1:03:37]} 24... Kd6 {[%clk 0:54:37]} 25. c4 {[%clk
1:03:57]} 25... dxc4 {[%clk 0:51:56]} 26. Bxc4 {[%clk 1:03:38]} 26... Rg8 {[%clk
0:48:54]} 27. Re5 {[%clk 1:03:33]} 27... g6 {[%clk 0:45:37]} 28. Rbe1 {[%clk
1:01:39]} 28... Bc8 {[%clk 0:44:38]} 29. R1e4 {[%clk 1:01:14]} 29... g5 {[%clk
0:42:34]} 30. fxg5 {[%clk 0:48:43]} 30... Rxg5 {[%clk 0:41:27]} 31. Rxg5 {[%clk
0:49:05]} 31... hxg5 {[%clk 0:41:51]} 32. Re2 {[%clk 0:49:23]} 32... Rf5 {[%clk
0:40:36]} 33. Bd3 {[%clk 0:46:56]} 33... Rd5+ {[%clk 0:37:07]} 34. Ke3 {[%clk
0:47:06]} 34... a5 {[%clk 0:28:48]} 35. Rc2 {[%clk 0:38:58]} 35... axb4 {[%clk
0:26:59]} 36. axb4 {[%clk 0:39:26]} 36... Bd7 {[%clk 0:27:05]} 37. Ra2 {[%clk
0:38:02]} 37... e5 {[%clk 0:24:50]} 38. Ra6 {[%clk 0:36:09]} 38... Bc8 {[%clk
0:24:24]} 39. Ra8 {[%clk 0:36:25]} 39... Bd7 {[%clk 0:23:25]} 40. Ra6 {[%clk
0:34:24]} 40... Kc7 {[%clk 0:23:39]} 41. Ra7+ {[%clk 0:33:37]} 41... Kb6 {[%clk
0:23:10]} 42. Ra6+ {[%clk 0:33:59]} 42... Kb7 {[%clk 0:21:01]} 43. Ra5 {[%clk
0:32:16]} 43... Be8 {[%clk 0:20:03]} 44. b5 {[%clk 0:20:22]} 44... Kb8 {[%clk
0:13:23]} 45. Ra6 {[%clk 0:17:20]} 45... cxb5 {[%clk 0:13:24]} 46. Be4 {[%clk
0:16:55]} 46... Rd8 {[%clk 0:13:19]} 47. Re6 {[%clk 0:17:17]} 47... Bd7 {[%clk
0:11:59]} 48. Rxe5 {[%clk 0:17:35]} 48... g4 {[%clk 0:10:06]} 49. Bf5 {[%clk
0:12:30]} 49... Re8 {[%clk 0:09:00]} 50. Rxe8+ {[%clk 0:12:53]} 50... Bxe8
{[%clk 0:09:29]} 51. Bxg4 {[%clk 0:13:00]} 51... Kc7 {[%clk 0:09:38]} 52. Kd4
{[%clk 0:13:15]} 52... Kd6 {[%clk 0:09:52]} 53. Bf3 {[%clk 0:13:18]} 53... Ke6
{[%clk 0:09:51]} 54. Ke4 {[%clk 0:12:39]} 54... Kf6 {[%clk 0:08:26]} 55. Kf4
{[%clk 0:12:32]} 55... b4 {[%clk 0:08:55]} 56. Be4 {[%clk 0:12:35]} 56... b3
{[%clk 0:08:38]} 57. Ke3 {[%clk 0:12:38]} 57... Ke5 {[%clk 0:07:10]} 58. Bh7
{[%clk 0:12:50]} 58... Bd7 {[%clk 0:07:08]} 59. Kd2 {[%clk 0:12:12]} 59... Bf5
{[%clk 0:07:27]} 60. Bxf5 {[%clk 0:12:30]} 1/2-1/2

[Variant "Standard"]
[Site "Europe Echecs"]

[Event "Championnat du monde jeunes U12"]
[Date "2024.11.22"]
[White "Yu, Zhe"]
[Black "Ritzerveld, Noah"]
[WhiteElo "1697"]
[BlackElo "2285"]
[Round "7.21"]
[Result "1-0"]
[TimeControl "5400+30"]

1. e4 {[%clk 1:30:59]} 1... e5 {[%clk 1:30:55]} 2. Nf3 {[%clk 1:31:25]} 2... Nc6
{[%clk 1:31:22]} 3. Bb5 {[%clk 1:31:51]} 3... a6 {[%clk 1:31:48]} 4. Ba4 {[%clk
1:32:16]} 4... Nf6 {[%clk 1:32:14]} 5. O-O {[%clk 1:32:42]} 5... Be7 {[%clk
1:32:35]} 6. Bxc6 {[%clk 1:32:12]} 6... dxc6 {[%clk 1:33:00]} 7. Re1 {[%clk
1:32:39]} 7... Bg4 {[%clk 1:32:13]} 8. h3 {[%clk 1:31:27]} 8... Bh5 {[%clk
1:32:39]} 9. d3 {[%clk 1:30:48]} 9... Qd6 {[%clk 1:28:32]} 10. Nbd2 {[%clk
1:29:55]} 10... Nd7 {[%clk 1:25:12]} 11. b3 {[%clk 1:25:45]} 11... O-O-O {[%clk
1:23:46]} 12. a4 {[%clk 1:24:23]} 12... g5 {[%clk 1:14:16]} 13. Nf1 {[%clk
1:13:14]} 13... f6 {[%clk 1:07:50]} 14. Ba3 {[%clk 0:59:21]} 14... Qe6 {[%clk
1:06:01]} 15. Nxg5 {[%clk 0:48:15]} 15... fxg5 {[%clk 0:53:43]} 16. Qxh5 {[%clk
0:48:38]} 16... Bxa3 {[%clk 0:51:20]} 17. Rxa3 {[%clk 0:49:01]} 17... Rdg8
{[%clk 0:51:11]} 18. Ne3 {[%clk 0:47:53]} 18... Nf6 {[%clk 0:49:40]} 19. Qf3
{[%clk 0:48:04]} 19... Qe7 {[%clk 0:48:33]} 20. Rea1 {[%clk 0:31:00]} 20... h5
{[%clk 0:47:47]} 21. Nf5 {[%clk 0:30:09]} 21... Qd8 {[%clk 0:46:40]} 22. Qe3
{[%clk 0:30:09]} 22... Kb8 {[%clk 0:44:29]} 23. b4 {[%clk 0:29:57]} 23... g4
{[%clk 0:35:25]} 24. h4 {[%clk 0:30:17]} 24... Qd7 {[%clk 0:31:34]} 25. c4
{[%clk 0:24:21]} 25... g3 {[%clk 0:29:00]} 26. f3 {[%clk 0:24:14]} 26... b6
{[%clk 0:26:38]} 27. b5 {[%clk 0:22:31]} 27... cxb5 {[%clk 0:24:56]} 28. c5
{[%clk 0:19:57]} 28... b4 {[%clk 0:21:17]} 29. Rb3 {[%clk 0:19:41]} 29... a5
{[%clk 0:20:43]} 30. cxb6 {[%clk 0:19:48]} 30... Rc8 {[%clk 0:17:10]} 31. Qc5
{[%clk 0:16:12]} 31... Kb7 {[%clk 0:16:32]} 32. Qxa5 {[%clk 0:14:15]} 32... cxb6
{[%clk 0:16:23]} 33. Qxb4 {[%clk 0:14:37]} 33... Rc6 {[%clk 0:16:35]} 34. a5
{[%clk 0:14:01]} 34... Rhc8 {[%clk 0:16:10]} 35. Nxg3 {[%clk 0:13:36]} 35... Qg7
{[%clk 0:14:21]} 36. axb6 {[%clk 0:11:33]} 36... Rc1+ {[%clk 0:13:15]} 37. Rxc1
{[%clk 0:11:37]} 37... Rxc1+ {[%clk 0:13:40]} 38. Kh2 {[%clk 0:12:04]} 38... Ne8
{[%clk 0:11:33]} 39. Qa3 {[%clk 0:11:54]} 1-0

[Variant "Standard"]
[Site "Europe Echecs"]

[Event "Championnat du monde jeunes U12"]
[Date "2024.11.22"]
[White "Sun, Kevin"]
[Black "Saminskij, Jan"]
[WhiteElo "1966"]
[BlackElo "2202"]
[Round "7.22"]
[Result "1/2-1/2"]
[TimeControl "5400+30"]

1. e4 {[%clk 1:30:55]} 1... e6 {[%clk 1:30:25]} 2. d4 {[%clk 1:31:17]} 2... d5
{[%clk 1:30:34]} 3. e5 {[%clk 1:31:40]} 3... c5 {[%clk 1:30:57]} 4. c3 {[%clk
1:32:03]} 4... Nc6 {[%clk 1:31:23]} 5. Nf3 {[%clk 1:32:28]} 5... Bd7 {[%clk
1:31:50]} 6. Be2 {[%clk 1:32:47]} 6... Rc8 {[%clk 1:32:17]} 7. O-O {[%clk
1:32:50]} 7... h6 {[%clk 1:32:37]} 8. Re1 {[%clk 1:25:28]} 8... Qb6 {[%clk
1:30:00]} 9. b3 {[%clk 1:12:57]} 9... cxd4 {[%clk 1:26:59]} 10. cxd4 {[%clk
1:12:51]} 10... Nge7 {[%clk 1:27:22]} 11. Na3 {[%clk 1:10:54]} 11... Nf5 {[%clk
1:27:31]} 12. Nc2 {[%clk 1:11:12]} 12... Nb4 {[%clk 1:26:07]} 13. Na3 {[%clk
1:05:43]} 13... Be7 {[%clk 1:24:12]} 14. Bb2 {[%clk 1:03:16]} 14... O-O {[%clk
1:21:02]} 15. Bd3 {[%clk 0:54:45]} 15... Nxd3 {[%clk 1:17:15]} 16. Qxd3 {[%clk
0:54:22]} 16... Bb4 {[%clk 1:15:06]} 17. Rec1 {[%clk 0:52:25]} 17... Qa5 {[%clk
1:12:18]} 18. Nc2 {[%clk 0:50:53]} 18... Bb5 {[%clk 1:11:02]} 19. Qd1 {[%clk
0:50:24]} 19... Bc3 {[%clk 1:07:37]} 20. Bxc3 {[%clk 0:44:40]} 20... Rxc3 {[%clk
0:58:37]} 21. Qd2 {[%clk 0:41:12]} 21... Rfc8 {[%clk 0:56:40]} 22. Ne3 {[%clk
0:38:42]} 22... Nxe3 {[%clk 0:53:47]} 23. fxe3 {[%clk 0:38:27]} 23... Qc7 {[%clk
0:53:05]} 24. Rxc3 {[%clk 0:32:24]} 24... Qxc3 {[%clk 0:53:28]} 25. Rd1 {[%clk
0:32:12]} 25... a5 {[%clk 0:49:46]} 26. Kf2 {[%clk 0:29:17]} 26... a4 {[%clk
0:49:47]} 27. Qxc3 {[%clk 0:26:14]} 27... Rxc3 {[%clk 0:50:09]} 28. bxa4 {[%clk
0:26:38]} 28... Bxa4 {[%clk 0:50:27]} 29. Rd2 {[%clk 0:26:34]} 29... Rc6 {[%clk
0:34:27]} 30. Rb2 {[%clk 0:25:16]} 30... b6 {[%clk 0:34:13]} 31. Nd2 {[%clk
0:24:02]} 31... Kf8 {[%clk 0:32:46]} 32. e4 {[%clk 0:22:27]} 32... Ke7 {[%clk
0:33:05]} 33. exd5 {[%clk 0:22:05]} 33... exd5 {[%clk 0:33:30]} 34. Nf1 {[%clk
0:21:07]} 34... Ke6 {[%clk 0:32:49]} 35. Ne3 {[%clk 0:21:23]} 35... b5 {[%clk
0:31:59]} 36. Ke2 {[%clk 0:19:12]} 36... Rc1 {[%clk 0:32:12]} 37. Kd3 {[%clk
0:18:14]} 37... Rh1 {[%clk 0:31:40]} 38. h3 {[%clk 0:18:37]} 38... Rg1 {[%clk
0:31:13]} 39. Rf2 {[%clk 0:15:52]} 39... b4 {[%clk 0:24:20]} 40. Nf5 {[%clk
0:14:54]} 40... Rd1+ {[%clk 0:23:27]} 41. Ke3 {[%clk 0:14:16]} 41... Re1+ {[%clk
0:22:25]} 42. Kd2 {[%clk 0:13:37]} 42... Rd1+ {[%clk 0:22:43]} 43. Ke2 {[%clk
0:10:48]} 43... g6 {[%clk 0:20:28]} 44. Nxh6 {[%clk 0:11:07]} 44... Rxd4 {[%clk
0:20:51]} 45. Nxf7 {[%clk 0:10:24]} 45... Rc4 46. Kd3 1/2-1/2

[Variant "Standard"]
[Site "Europe Echecs"]

[Event "Championnat du monde jeunes U12"]
[Date "2024.11.22"]
[White "Skytte, Robert"]
[Black "Kuandykuly, Danis"]
[WhiteElo "1925"]
[BlackElo "2199"]
[Round "7.23"]
[Result "0-1"]
[TimeControl "5400+30"]

1. e4 {[%clk 1:30:57]} 1... c5 {[%clk 1:23:35]} 2. Nf3 {[%clk 1:31:20]} 2... d6
{[%clk 1:23:55]} 3. d4 {[%clk 1:31:45]} 3... cxd4 {[%clk 1:24:20]} 4. Nxd4
{[%clk 1:32:09]} 4... Nf6 {[%clk 1:24:36]} 5. Nc3 {[%clk 1:32:24]} 5... a6
{[%clk 1:23:19]} 6. Be3 {[%clk 1:29:09]} 6... e5 {[%clk 1:21:54]} 7. Nb3 {[%clk
1:27:51]} 7... Be6 {[%clk 1:20:11]} 8. Nd5 {[%clk 1:26:35]} 8... Nxd5 {[%clk
1:16:00]} 9. exd5 {[%clk 1:26:52]} 9... Bf5 {[%clk 1:13:50]} 10. Bd3 {[%clk
1:24:59]} 10... Bxd3 {[%clk 1:13:48]} 11. Qxd3 {[%clk 1:25:20]} 11... Be7 {[%clk
1:14:04]} 12. O-O-O {[%clk 1:24:49]} 12... Nd7 {[%clk 1:14:03]} 13. g4 {[%clk
1:22:58]} 13... Rc8 {[%clk 1:01:12]} 14. Kb1 {[%clk 1:21:10]} 14... Nb6 {[%clk
0:56:14]} 15. Bxb6 {[%clk 1:14:22]} 15... Qxb6 {[%clk 0:56:25]} 16. f3 {[%clk
1:12:43]} 16... Qc7 {[%clk 0:55:39]} 17. Nd2 {[%clk 1:08:53]} 17... O-O {[%clk
0:53:02]} 18. Ne4 {[%clk 1:05:06]} 18... f5 {[%clk 0:49:57]} 19. gxf5 {[%clk
1:05:24]} 19... Qd7 {[%clk 0:48:47]} 20. Ng3 {[%clk 1:01:37]} 20... Bh4 {[%clk
0:46:59]} 21. b3 {[%clk 0:53:44]} 21... Bxg3 {[%clk 0:39:25]} 22. hxg3 {[%clk
0:54:11]} 22... Qxf5 {[%clk 0:39:49]} 23. g4 {[%clk 0:54:24]} 23... Qxd3 {[%clk
0:39:26]} 24. Rxd3 {[%clk 0:54:49]} 24... Rf4 {[%clk 0:39:46]} 25. Re1 {[%clk
0:54:08]} 25... Rcf8 {[%clk 0:38:17]} 26. Ree3 {[%clk 0:52:36]} 26... g6 {[%clk
0:37:41]} 27. Kc1 {[%clk 0:49:23]} 27... Kg7 {[%clk 0:37:48]} 28. Kd1 {[%clk
0:49:36]} 28... h5 {[%clk 0:37:59]} 29. gxh5 {[%clk 0:50:02]} 29... gxh5 {[%clk
0:38:27]} 30. Ke2 {[%clk 0:50:02]} 30... Kf6 {[%clk 0:34:33]} 31. Rd1 {[%clk
0:49:35]} 31... Rg8 {[%clk 0:34:52]} 32. Rf1 {[%clk 0:46:52]} 32... b5 {[%clk
0:33:07]} 33. Rf2 {[%clk 0:44:06]} 33... Rg1 {[%clk 0:28:58]} 34. Rf1 {[%clk
0:42:46]} 34... Rxf1 {[%clk 0:28:50]} 35. Kxf1 {[%clk 0:43:05]} 35... Rd4 {[%clk
0:29:16]} 36. c4 {[%clk 0:41:47]} 36... bxc4 {[%clk 0:29:02]} 37. bxc4 {[%clk
0:42:13]} 37... Rxc4 {[%clk 0:29:18]} 38. Ra3 {[%clk 0:42:34]} 38... Rc5 {[%clk
0:29:24]} 39. Rxa6 {[%clk 0:42:55]} 39... Rxd5 {[%clk 0:29:50]} 40. a4 {[%clk
0:42:41]} 40... Kg5 {[%clk 0:29:41]} 41. Ra8 {[%clk 0:42:10]} 41... Kf4 {[%clk
0:22:51]} 42. Ke2 {[%clk 0:42:30]} 42... Rc5 {[%clk 0:20:50]} 43. a5 {[%clk
0:41:33]} 43... Rc2+ {[%clk 0:17:07]} 44. Kd3 {[%clk 0:37:59]} 44... Ra2 {[%clk
0:17:32]} 45. Kc3 {[%clk 0:38:00]} 45... Kxf3 {[%clk 0:17:35]} 46. Kb3 {[%clk
0:38:21]} 46... Ra1 {[%clk 0:17:57]} 47. Kb2 {[%clk 0:38:47]} 47... Rg1 {[%clk
0:17:49]} 48. a6 {[%clk 0:38:38]} 48... Rg7 {[%clk 0:17:55]} 49. a7 {[%clk
0:38:52]} 49... Ke4 {[%clk 0:14:09]} 50. Rd8 {[%clk 0:39:04]} 50... Rxa7 {[%clk
0:14:28]} 51. Rxd6 {[%clk 0:39:32]} 51... Rh7 {[%clk 0:14:41]} 0-1

[Variant "Standard"]
[Site "Europe Echecs"]

[Event "Championnat du monde jeunes U12"]
[Date "2024.11.22"]
[White "Belyaletdinov, Leonard"]
[Black "Ivancic, Ivan"]
[WhiteElo "1903"]
[BlackElo "2091"]
[Round "7.24"]
[Result "1-0"]
[TimeControl "5400+30"]

1. e4 {[%clk 1:30:56]} 1... c5 {[%clk 1:30:47]} 2. Nf3 {[%clk 1:31:17]} 2... d6
{[%clk 1:30:46]} 3. Bb5+ {[%clk 1:31:43]} 3... Bd7 {[%clk 1:30:40]} 4. Bxd7+
{[%clk 1:30:31]} 4... Qxd7 {[%clk 1:31:07]} 5. O-O {[%clk 1:30:38]} 5... Nc6
{[%clk 1:28:54]} 6. d3 {[%clk 1:21:05]} 6... g6 {[%clk 1:27:34]} 7. Nc3 {[%clk
1:16:14]} 7... Bg7 {[%clk 1:26:53]} 8. Be3 {[%clk 1:14:10]} 8... Nf6 {[%clk
1:22:22]} 9. Re1 {[%clk 1:09:50]} 9... O-O {[%clk 1:10:37]} 10. h3 {[%clk
1:04:39]} 10... a6 {[%clk 0:59:07]} 11. a4 {[%clk 0:54:48]} 11... e5 {[%clk
0:53:26]} 12. Bg5 {[%clk 0:51:36]} 12... Ne8 {[%clk 0:47:55]} 13. Nd5 {[%clk
0:50:25]} 13... Rb8 {[%clk 0:48:16]} 14. Nh2 {[%clk 0:45:49]} 14... f6 {[%clk
0:47:49]} 15. Be3 {[%clk 0:45:43]} 15... Nc7 {[%clk 0:41:36]} 16. Nb6 {[%clk
0:38:23]} 16... Qf7 {[%clk 0:39:13]} 17. f4 {[%clk 0:34:06]} 17... f5 {[%clk
0:37:18]} 18. Nc4 {[%clk 0:29:39]} 18... Rbd8 {[%clk 0:35:18]} 19. fxe5 {[%clk
0:27:41]} 19... Nxe5 {[%clk 0:34:01]} 20. Nxe5 {[%clk 0:27:25]} 20... Bxe5
{[%clk 0:33:45]} 21. Nf3 {[%clk 0:27:09]} 21... Bg7 {[%clk 0:24:51]} 22. Ng5
{[%clk 0:25:28]} 22... Qf6 {[%clk 0:22:20]} 23. Rf1 {[%clk 0:24:46]} 23... h6
{[%clk 0:22:07]} 24. Nf3 {[%clk 0:24:26]} 24... f4 {[%clk 0:18:45]} 25. Bd2
{[%clk 0:24:55]} 25... d5 {[%clk 0:17:00]} 26. Bc3 {[%clk 0:19:49]} 26... d4
{[%clk 0:17:21]} 27. Bd2 {[%clk 0:20:09]} 27... Ne6 {[%clk 0:16:09]} 28. b3
{[%clk 0:18:08]} 28... b6 {[%clk 0:15:30]} 29. Qe2 {[%clk 0:17:02]} 29... a5
{[%clk 0:14:48]} 30. Rae1 {[%clk 0:17:00]} 30... g5 {[%clk 0:14:35]} 31. Nh2
{[%clk 0:16:41]} 31... Qg6 {[%clk 0:14:49]} 32. Qf3 {[%clk 0:15:28]} 32... h5
{[%clk 0:13:34]} 33. g4 {[%clk 0:11:26]} 33... h4 {[%clk 0:06:11]} 34. Qg2
{[%clk 0:11:12]} 34... Be5 {[%clk 0:06:10]} 35. Nf3 {[%clk 0:11:20]} 35... Qf6
{[%clk 0:05:38]} 36. Rc1 {[%clk 0:11:39]} 36... Rd7 {[%clk 0:05:39]} 37. Rfd1
{[%clk 0:11:12]} 37... Rfd8 {[%clk 0:05:42]} 38. Qe2 {[%clk 0:11:31]} 38... Kg7
{[%clk 0:04:59]} 39. Kg2 {[%clk 0:10:50]} 39... Kg8 {[%clk 0:05:03]} 40. Be1
{[%clk 0:10:40]} 40... Kg7 {[%clk 0:04:48]} 41. Kh2 {[%clk 0:10:43]} 41... Kh8
{[%clk 0:03:45]} 42. Kh1 {[%clk 0:11:06]} 42... Rg7 {[%clk 0:03:20]} 43. Bf2
{[%clk 0:10:51]} 43... Kg8 {[%clk 0:03:03]} 44. Rg1 {[%clk 0:11:14]} 44... Kf7
{[%clk 0:03:02]} 45. Rg2 {[%clk 0:11:14]} 45... Rdg8 {[%clk 0:03:07]} 46. Rcg1
{[%clk 0:11:20]} 46... Ke7 {[%clk 0:01:49]} 47. Qe1 {[%clk 0:11:14]} 47... Rh7
{[%clk 0:01:29]} 48. Qa1 {[%clk 0:11:21]} 48... Rhg7 {[%clk 0:01:14]} 49. Be1
{[%clk 0:11:33]} 49... Rg6 {[%clk 0:00:39]} 50. Rf1 {[%clk 0:11:07]} 50... Rd8
{[%clk 0:00:51]} 51. Nd2 {[%clk 0:11:02]} 51... Nc7 {[%clk 0:00:41]} 52. Nc4
{[%clk 0:11:04]} 52... Rd7 {[%clk 0:00:33]} 53. Qa3 {[%clk 0:10:53]} 53... Na6
{[%clk 0:00:34]} 54. Bd2 {[%clk 0:08:47]} 54... Rg8 {[%clk 0:00:42]} 55. Qa1
{[%clk 0:08:13]} 55... Nb8 {[%clk 0:00:57]} 56. Bc1 {[%clk 0:08:01]} 56... Nc6
{[%clk 0:01:14]} 57. Nxb6 {[%clk 0:08:14]} 57... Nb4 {[%clk 0:01:06]} 58. Nxd7
{[%clk 0:07:39]} 58... Kxd7 {[%clk 0:01:35]} 59. Rf3 {[%clk 0:06:20]} 59... Rb8
{[%clk 0:01:30]} 60. Ba3 {[%clk 0:05:07]} 60... Rc8 {[%clk 0:01:17]} 61. Qe1
{[%clk 0:05:09]} 61... Rc7 {[%clk 0:01:16]} 62. Bb2 {[%clk 0:05:00]} 62... Kc8
{[%clk 0:00:51]} 63. Qd2 {[%clk 0:05:25]} 63... Kb7 {[%clk 0:00:54]} 64. Rg1
{[%clk 0:05:48]} 64... Kb6 {[%clk 0:00:55]} 65. Rc1 {[%clk 0:06:11]} 65... Na2
{[%clk 0:01:10]} 66. Re1 {[%clk 0:05:26]} 66... Rf7 {[%clk 0:00:35]} 67. Ra1
{[%clk 0:04:54]} 67... Nb4 {[%clk 0:00:50]} 68. Qd1 {[%clk 0:04:37]} 68... Rf8
{[%clk 0:00:56]} 69. Bc1 {[%clk 0:04:54]} 69... Rf7 {[%clk 0:01:07]} 70. Bd2
{[%clk 0:05:13]} 70... Rd7 {[%clk 0:00:41]} 71. Qc1 {[%clk 0:05:29]} 71... Rb7
{[%clk 0:00:35]} 72. Qb2 {[%clk 0:05:46]} 72... Kc6 {[%clk 0:00:34]} 73. Rc1
{[%clk 0:06:03]} 73... Kd6 {[%clk 0:00:31]} 74. Kg2 {[%clk 0:05:51]} 74... Nc6
{[%clk 0:00:34]} 75. Rf2 {[%clk 0:04:21]} 75... Rf7 {[%clk 0:00:47]} 76. Rf3
{[%clk 0:03:48]} 76... Rb7 {[%clk 0:00:55]} 77. c3 {[%clk 0:03:22]} 77... dxc3
{[%clk 0:01:21]} 78. Bxc3 {[%clk 0:03:48]} 78... Nd4 {[%clk 0:00:33]} 79. Bxd4
{[%clk 0:04:09]} 79... Bxd4 {[%clk 0:01:00]} 80. Qc2 {[%clk 0:04:29]} 80... Rb4
{[%clk 0:01:07]} 81. Rff1 {[%clk 0:04:25]} 81... Qe5 {[%clk 0:00:40]} 82. Qd1
{[%clk 0:03:56]} 82... Bb2 {[%clk 0:00:34]} 83. Rc4 {[%clk 0:04:19]} 83... Bc3
{[%clk 0:00:46]} 84. Qc2 {[%clk 0:04:13]} 84... Rxc4 {[%clk 0:01:03]} 85. dxc4
{[%clk 0:04:31]} 85... Kc6 {[%clk 0:00:49]} 86. Qd3 {[%clk 0:04:43]} 86... Bd4
{[%clk 0:01:05]} 87. Kf3 {[%clk 0:05:11]} 87... Kb6 {[%clk 0:01:15]} 88. Rc1
{[%clk 0:05:03]} 88... Kb7 {[%clk 0:00:36]} 89. b4 {[%clk 0:05:12]} 89... axb4
{[%clk 0:00:50]} 90. a5 {[%clk 0:05:27]} 90... Ka6 {[%clk 0:00:45]} 91. Qb3
{[%clk 0:05:32]} 91... Bb2 {[%clk 0:00:40]} 92. Rc2 {[%clk 0:05:28]} 92... Bc3
{[%clk 0:00:41]} 93. Re2 {[%clk 0:03:10]} 93... Qd4 {[%clk 0:00:54]} 94. Qb1
{[%clk 0:02:31]} 94... Bd2 {[%clk 0:00:33]} 95. e5 {[%clk 0:02:03]} 95... Qc3+
{[%clk 0:00:42]} 96. Ke4 {[%clk 0:00:57]} 96... Qxc4+ {[%clk 0:00:45]} 97. Kf3
{[%clk 0:01:15]} 97... Qc3+ {[%clk 0:01:02]} 98. Ke4 {[%clk 0:01:20]} 98... f3
{[%clk 0:00:36]} 99. Rxd2 {[%clk 0:00:46]} 99... Qxd2 {[%clk 0:01:05]} 100. Kxf3
{[%clk 0:01:05]} 100... Qc3+ {[%clk 0:01:19]} 101. Ke4 {[%clk 0:01:20]} 101...
b3 {[%clk 0:01:20]} 102. Qd3+ {[%clk 0:01:02]} 102... Qxd3+ {[%clk 0:01:22]}
103. Kxd3 {[%clk 0:01:32]} 103... Kxa5 {[%clk 0:00:37]} 104. e6 {[%clk 0:01:32]}
104... Kb4 {[%clk 0:00:57]} 105. e7 {[%clk 0:01:52]} 105... c4+ {[%clk 0:01:12]}
106. Ke2 {[%clk 0:02:03]} 106... b2 {[%clk 0:00:33]} 107. e8=Q {[%clk 0:02:26]}
107... c3 {[%clk 0:00:35]} 108. Qe4+ {[%clk 0:02:27]} 108... Kb3 {[%clk
0:00:33]} 109. Kd1 {[%clk 0:02:47]} 109... Ka2 {[%clk 0:00:35]} 110. Qa4+ {[%clk
0:02:58]} 110... Kb1 {[%clk 0:01:00]} 111. Qb3 {[%clk 0:03:08]} 111... Ka1
{[%clk 0:00:42]} 112. Kc2 {[%clk 0:03:32]} 1-0

[Variant "Standard"]
[Site "Europe Echecs"]

[Event "Championnat du monde jeunes U12"]
[Date "2024.11.22"]
[White "Vinales Gonzalez, Enzo Mathias"]
[Black "Bulgak, Damir"]
[WhiteElo "1903"]
[BlackElo "2044"]
[Round "7.25"]
[Result "0-1"]
[TimeControl "5400+30"]

1. e4 {[%clk 1:30:59]} 1... e5 {[%clk 1:30:42]} 2. Nf3 {[%clk 1:31:24]} 2... Nc6
{[%clk 1:31:04]} 3. Bc4 {[%clk 1:31:44]} 3... Nf6 {[%clk 1:31:26]} 4. Nc3 {[%clk
1:31:21]} 4... Nxe4 {[%clk 1:30:37]} 5. Nxe4 {[%clk 1:31:33]} 5... d5 6. Bd3
{[%clk 1:29:16]} 6... dxe4 {[%clk 1:31:20]} 7. Bxe4 {[%clk 1:29:39]} 7... Bd6
{[%clk 1:29:27]} 8. O-O {[%clk 1:27:55]} 8... O-O {[%clk 1:29:34]} 9. d3 {[%clk
1:28:01]} 9... Ne7 {[%clk 1:26:42]} 10. c3 {[%clk 1:07:24]} 10... f5 {[%clk
1:24:08]} 11. Qb3+ {[%clk 1:07:48]} 11... Kh8 {[%clk 1:24:36]} 12. Bd5 {[%clk
1:06:39]} 12... Nxd5 {[%clk 1:12:30]} 13. Qxd5 {[%clk 1:07:02]} 13... Qf6 {[%clk
1:09:55]} 14. Bg5 {[%clk 0:46:28]} 14... Qg6 {[%clk 1:10:19]} 15. h4 {[%clk
0:41:23]} 15... c6 {[%clk 1:05:18]} 16. Qb3 {[%clk 0:35:29]} 16... f4 17. d4
{[%clk 0:31:23]} 17... e4 {[%clk 0:56:59]} 18. Ne5 {[%clk 0:30:40]} 18... Bxe5
{[%clk 0:57:04]} 19. dxe5 {[%clk 0:31:04]} 19... h6 {[%clk 0:57:20]} 20. Be7
{[%clk 0:25:42]} 20... f3 {[%clk 0:57:33]} 0-1

[Variant "Standard"]
[Site "Europe Echecs"]